bitfinex/quotes_ETHUSD_20250703
["timestamp","ask_amount","ask_price","bid_price","bid_amount"]
[1751546677124,0.01,2583.2,2583.1,3.8713174]
[1751546677333,1e-08,2583.6,2583.5,3.87071801]
[1751546677489,1e-08,2583.6,2583.5,5.66012519]
[1751546677825,1e-08,2583.6,2583.5,6.01732519]
[1751546677982,1e-08,2583.6,2583.5,5.46732519]
[1751546678186,1e-08,2583.6,2583.5,6.74953478]
[1751546678426,1e-08,2583.6,2583.5,6.78824196]
[1751546678958,1e-08,2583.6,2583.5,17.33824196]
[1751546679123,1e-08,2583.6,2583.5,17.29953478]
[1751546680081,1e-08,2583.6,2583.5,6.74953478]
[1751546680225,1e-08,2583.6,2583.4,3.8707967]
[1751546680431,1e-08,2583.6,2583.5,3.90942519]
[1751546680830,1e-08,2583.6,2582.9,4.42159205]
[1751546680831,1e-08,2583.6,2582.9,3.8715886]
[1751546681060,1e-08,2583.6,2583.1,3.87121842]
[1751546681362,1e-08,2583.6,2583.0,3.87139427]
[1751546681665,1e-08,2583.6,2582.9,3.87154175]
[1751546681830,1e-08,2583.6,2582.6,9.556]
[1751546681831,4.3447,2583.5,2582.6,3.87202039]
[1751546682030,4.3447,2583.5,2582.6,0.62615775]
[1751546682259,4.3447,2583.5,2582.8,3.87168214]
[1751546682561,4.3447,2583.5,2582.9,3.8716123]
[1751546682762,4.3447,2583.5,2582.5,3.87221684]
[1751546682951,4.3447,2583.5,2582.8,3.87161725]
[1751546683150,4.3447,2583.5,2582.9,0.03871617]
[1751546683332,4.3447,2583.5,2582.4,1.6151]
[1751546683650,4.3447,2583.5,2582.8,3.87175218]
[1751546684040,4.3447,2583.5,2582.8,3.87169658]
[1751546684238,4.3447,2583.5,2582.9,0.36030771]
[1751546684429,4.3447,2583.5,2583.0,3.87135842]
[1751546684636,4.3447,2583.5,2583.1,3.8712822]
[1751546684832,4.3447,2583.5,2582.5,1.11631]
[1751546685032,4.3447,2583.5,2582.6,0.36033926]
[1751546685232,4.3447,2583.5,2582.8,3.87176177]
[1751546685431,4.3447,2583.5,2582.9,0.36033926]
[1751546685659,4.3447,2583.5,2583.0,0.36033926]
[1751546685840,4.3447,2583.5,2582.7,3.8719073]
[1751546686039,4.3447,2583.5,2582.8,0.36056653]
[1751546686241,4.3447,2583.5,2582.9,0.36056653]
[1751546686461,4.3447,2583.5,2583.0,4.23203228]
[1751546686760,4.3447,2583.5,2583.1,0.36080672]
[1751546686931,4.3447,2583.5,2582.9,3.87160632]
[1751546687132,4.3447,2583.5,2583.0,0.36080711]
[1751546687363,4.3447,2583.5,2583.1,0.36080711]
[1751546687563,4.3447,2583.5,2582.9,4.25876695]
[1751546687731,4.3447,2583.5,2583.0,0.36102822]
[1751546687928,4.3447,2583.5,2583.1,0.36102822]
[1751546687929,0.1928,2583.3,2583.1,0.36102822]
[1751546688161,0.1928,2583.3,2582.9,0.1928]
[1751546688363,2.757,2583.5,2583.0,0.36118689]
[1751546688663,1e-08,2583.6,2583.4,0.1928]
[1751546689239,1e-08,2583.6,2582.9,3.87155208]
[1751546689431,0.19280001,2583.6,2583.1,0.1928]
[1751546689650,0.19280001,2583.6,2583.2,0.36117848]
[1751546689852,1e-08,2583.6,2582.2,6.183774]
[1751546690049,0.1928,2583.1,2582.7,0.1928]
[1751546690271,0.1928,2583.1,2582.8,0.36118641]
[1751546690481,0.1928,2583.1,2582.9,0.36118641]
[1751546690698,0.1928,2583.1,2583.0,0.36118641]
[1751546691304,0.1928,2583.1,2582.6,0.1928]
[1751546691469,0.1928,2583.1,2582.7,0.36123528]
[1751546691654,0.1928,2583.1,2582.8,0.36123528]
[1751546691983,1e-08,2583.6,2582.9,0.36123528]
[1751546691984,2.713,2583.5,2582.9,0.36123528]
[1751546692178,31.6106,2583.4,2583.0,0.36123528]
[1751546692355,1.6492,2583.3,2582.3,3.87251105]
[1751546692556,1.6492,2583.3,2582.4,4.23366223]
[1751546692756,2.713,2583.2,2582.5,0.40003608]
[1751546692981,2.713,2583.2,2582.7,3.87183917]
[1751546693167,2.713,2583.2,2582.8,0.36131392]
[1751546693488,2.713,2583.2,2582.6,0.03872066]
[1751546693698,9.304,2583.5,2582.6,0.03872066]
[1751546693699,12.017,2583.5,2582.7,0.36128851]
[1751546693852,12.017,2583.5,2583.0,3.87139816]
[1751546694057,12.017,2583.5,2583.1,4.23257742]
[1751546694256,12.017,2583.5,2583.2,4.23238217]
[1751546694486,12.017,2583.5,2583.0,3.87139816]
[1751546694689,12.017,2583.5,2583.1,4.23250613]
[1751546694875,12.017,2583.5,2583.3,3.87099049]
[1751546695194,12.017,2583.5,2583.3,3.87101099]
[1751546695408,12.017,2583.5,2582.7,0.19901885]
[1751546695564,12.017,2583.5,2582.8,0.39996817]
[1751546695763,12.017,2583.5,2583.4,3.87086784]
[1751546696001,2.713,2583.5,2583.4,0.3612505]
[1751546696179,2.713,2583.5,2583.0,3.87144054]
[1751546696359,2.713,2583.5,2583.1,0.3612767]
[1751546696562,2.713,2583.5,2583.2,0.3612767]
[1751546696875,2.713,2583.5,2583.3,0.3612767]
[1751546697083,2.713,2583.5,2582.9,3.87151651]
[1751546697289,2.713,2583.5,2583.0,0.36128131]
[1751546697597,2.713,2583.5,2583.1,0.36128131]
[1751546697908,2.713,2583.5,2583.2,4.23237162]
[1751546698202,2.713,2583.5,2583.4,3.87086784]
[1751546698506,2.713,2583.5,2583.4,0.36128131]
[1751546699090,2.713,2583.5,2583.4,4.23214915]
[1751546699800,1e-08,2583.6,2583.5,3.87071801]
[1751546699976,1e-08,2583.6,2583.5,4.23199932]
[1751546700700,1e-08,2583.6,2583.5,0.36128131]
[1751546701100,1e-08,2583.6,2583.5,4.2707065]
[1751546701588,1e-08,2583.6,2583.5,16.4484065]
[1751546701793,1e-08,2583.6,2583.5,18.63442579]
[1751546702103,1e-08,2583.6,2583.5,18.63439846]
[1751546702681,1e-08,2583.6,2583.5,18.08439846]
[1751546702894,1e-08,2583.6,2583.5,0.55405398]
[1751546703434,1e-08,2583.6,2583.5,0.36125398]
[1751546704307,1.52420001,2583.6,2583.5,0.36125398]
[1751546705615,1e-08,2583.6,2583.5,0.36125398]
[1751546706116,1e-08,2583.6,2583.5,0.38125398]
[1751546707195,1e-08,2583.6,2583.5,0.02]
[1751546707398,31.59570001,2583.6,2583.5,0.02]
[1751546708603,32.14570001,2583.6,2583.5,0.02]
[1751546710304,1.59570001,2583.6,2583.5,0.02]
[1751546710498,32.14570001,2583.6,2583.5,0.02]
[1751546710698,41.61170001,2583.6,2583.5,0.02]
[1751546710935,11.06170001,2583.6,2583.5,0.02]
[1751546711284,41.61170001,2583.6,2583.5,0.02]
[1751546711485,42.42046485,2583.6,2583.5,0.02]
[1751546712234,45.13046485,2583.6,2583.5,0.02]
[1751546713911,0.55,2583.3,2582.6,0.02]
[1751546714113,30.0,2583.1,2582.6,0.02]
[1751546714408,10.9327,2583.2,2582.6,0.02]
[1751546714409,9.456,2583.0,2582.6,0.02]
[1751546714609,2.713,2582.9,2582.6,0.02]
[1751546714913,1.6287,2582.8,2582.6,0.02]
[1751546715745,30.0,2582.7,2582.6,0.02]
[1751546715977,1.6287,2582.8,2582.6,0.02]
[1751546717406,1.5533,2583.1,2582.6,0.02]
[1751546717607,2.9068,2582.7,2582.6,0.02]
[1751546719212,12.3518,2582.7,2582.6,0.02]
[1751546720325,2.9068,2582.7,2582.6,0.02]
[1751546723810,40.55,2582.5,2582.4,0.02]
[1751546724015,41.4845,2582.5,2582.4,0.02]
[1751546724248,35.92671684,2582.5,2582.4,0.02]
[1751546724540,48.02571684,2582.5,2582.4,0.02]
[1751546724750,47.47571684,2582.5,2582.4,0.02]
[1751546724959,34.42296669,2582.0,2581.9,0.02]
[1751546725160,54.66046669,2582.0,2581.9,0.02]
[1751546725648,41.3605,2582.0,2581.9,0.02]
[1751546725942,52.9065,2582.0,2581.9,0.02]
[1751546726549,22.9045,2582.0,2581.9,0.02]
[1751546726719,9.306,2582.0,2581.9,0.02]
[1751546727118,9.306,2582.0,2581.9,0.40932525]
[1751546727338,9.306,2582.0,2581.9,4.28244194]
[1751546727541,2.67,2582.2,2582.1,3.87281669]
[1751546727825,2.67,2582.2,2582.1,5.76584163]
[1751546728135,2.67,2582.2,2582.1,1.5327]
[1751546728437,2.67,2582.2,2581.9,0.40932525]
[1751546728438,4.255,2582.2,2581.9,0.02]
[1751546728653,40.0,2582.1,2581.9,0.02]
[1751546728857,9.418,2582.0,2581.9,0.02]
[1751546729337,31.552,2581.9,2581.0,0.02]
[1751546729539,30.0,2581.7,2581.0,0.02]
[1751546730665,40.0,2581.2,2581.0,0.02]
[1751546730824,42.631,2581.1,2581.0,0.02]
[1751546731025,44.1564,2581.1,2581.0,0.02]
[1751546731656,14.1564,2581.1,2581.0,0.02]
[1751546732132,44.1564,2581.1,2581.0,0.02]
[1751546733734,40.55,2580.9,2580.5,0.02]
[1751546733987,39.955,2580.9,2580.5,0.02]
[1751546734136,30.0,2581.0,2580.5,0.02]
[1751546734337,9.404,2580.9,2580.5,0.02]
[1751546735069,12.075,2580.9,2580.5,0.02]
[1751546735578,12.072,2580.9,2580.5,0.02]
[1751546736580,42.622,2580.9,2580.5,0.02]
[1751546736934,44.242,2580.9,2580.5,0.02]
[1751546737237,44.237,2580.9,2580.5,0.02]
[1751546738071,1.62,2580.9,2580.5,0.02]
[1751546738335,43.688,2580.9,2580.5,0.02]
[1751546738609,44.238,2580.9,2580.5,0.02]
[1751546741595,14.238,2580.9,2580.5,0.02]
[1751546741801,44.238,2580.9,2580.5,0.02]
[1751546742003,34.842,2580.9,2580.5,0.02]
[1751546742317,44.226,2580.9,2580.5,0.02]
[1751546742475,43.675,2580.9,2580.5,0.02]
[1751546743181,12.053,2580.9,2580.5,0.02]
[1751546743494,0.55,2580.6,2580.5,0.02]
[1751546743698,49.244,2580.6,2580.5,0.02]
[1751546744232,0.55,2580.4,2579.7,0.02]
[1751546744519,30.0,2579.9,2579.7,0.02]
[1751546744821,42.049,2579.8,2579.7,0.02]
[1751546745526,42.599,2579.8,2579.7,0.02]
[1751546746606,44.1598,2579.8,2579.7,0.02]
[1751546747076,32.1108,2579.8,2579.7,0.02]
[1751546747279,44.1528,2579.8,2579.7,0.02]
[1751546747887,1.607,2579.6,2578.1,1.6506]
[1751546748104,0.55,2579.2,2578.1,1.6506]
[1751546748330,30.0,2579.0,2578.1,1.6506]
[1751546748482,11.996,2578.9,2578.3,3.87840031]
[1751546748813,9.367,2578.8,2578.4,1.6444]
[1751546748975,9.367,2578.8,2578.4,5.52274786]
[1751546749181,9.367,2578.8,2578.5,3.87813325]
[1751546749486,9.367,2578.8,2578.6,3.87807028]
[1751546749671,9.367,2578.8,2578.4,5.52276161]
[1751546749880,9.367,2578.8,2578.5,3.87819471]
[1751546750080,9.367,2578.8,2578.5,3.87822377]
[1751546750281,9.367,2578.8,2578.4,1.6444]
[1751546750607,9.367,2578.8,2577.0,9.96311264]
[1751546750608,9.363,2578.8,2578.2,1.5809]
[1751546750808,11.992,2578.8,2578.7,1.5809]
[1751546751202,11.99,2578.8,2578.7,5.45882298]
[1751546751620,9.316,2579.1,2578.7,1.5809]
[1751546751793,9.316,2579.1,2579.0,3.87747188]
[1751546751995,9.316,2579.1,2578.9,3.87751317]
[1751546752198,9.316,2579.1,2579.0,3.87747188]
[1751546752921,9.316,2579.1,2578.9,3.87760739]
[1751546753122,9.316,2579.1,2579.0,3.87747188]
[1751546753296,9.316,2579.1,2578.9,3.87755603]
[1751546753487,9.316,2579.1,2578.7,1.5809]
[1751546753889,9.355,2579.0,2578.7,1.5809]
[1751546754087,9.355,2579.0,2578.4,1.6083]
[1751546754601,0.1936,2578.5,2578.1,4.07234194]
[1751546754787,0.1936,2578.5,2578.1,5.70094194]
[1751546755203,9.352,2578.4,2578.1,5.70102198]
[1751546755487,0.1936,2578.2,2578.1,1.6286]
[1751546755820,9.316,2579.1,2578.1,1.6286]
[1751546756022,0.1936,2578.9,2578.4,0.1936]
[1751546756213,0.1936,2578.9,2578.6,3.87805544]
[1751546756408,0.1936,2578.9,2578.4,0.1936]
[1751546756614,0.1936,2578.9,2578.8,3.8777726]
[1751546756793,2.629,2579.0,2578.9,3.87762224]
[1751546756996,11.976,2579.0,2578.9,3.87762224]
[1751546757322,21.4846,2579.1,2579.0,3.87747188]
[1751546757519,21.4846,2579.1,2578.9,3.87753739]
[1751546757718,21.4846,2579.1,2578.8,3.87773756]
[1751546757719,21.4846,2579.1,2578.8,3.87770225]
[1751546758119,21.4846,2579.1,2578.7,4.07148278]
[1751546758931,9.316,2579.1,2578.9,3.87759879]
[1751546759131,9.316,2579.1,2578.8,4.07133854]
[1751546759331,9.316,2579.1,2578.6,1.5534]
[1751546759529,0.1936,2578.8,2578.6,1.5534]
[1751546759718,0.1936,2578.8,2578.6,5.43144249]
[1751546759920,0.1936,2578.8,2578.7,3.87792298]
[1751546760121,0.1936,2578.8,2578.6,5.43140976]
[1751546760431,9.5096,2579.1,2578.8,3.8777089]
[1751546760632,9.5096,2579.1,2578.6,2.67797203]
[1751546760821,9.5096,2579.1,2578.6,1.747]
[1751546761158,0.1936,2578.6,2578.3,1.6098]
[1751546761340,9.316,2579.1,2578.7,1.6098]
[1751546761341,12.1396,2579.1,2578.7,1.6098]
[1751546761635,12.1396,2579.1,2578.9,3.8775215]
[1751546761636,9.316,2579.1,2578.9,3.8775215]
[1751546761811,9.316,2579.1,2579.0,3.87747188]
[1751546762450,2.63,2579.3,2579.1,3.87724481]
[1751546762744,2.63,2579.3,2579.2,4.07077121]
[1751546762957,0.1936,2579.7,2579.2,4.07077121]
[1751546762958,0.1936,2579.7,2579.6,3.87657001]
[1751546763250,2.8236,2580.1,2579.6,1.8293]
[1751546763754,0.1936,2580.0,2579.7,3.87637592]
[1751546763956,9.5216,2580.0,2579.8,3.87624858]
[1751546764108,9.5216,2580.0,2579.6,5.51218697]
[1751546764306,9.5216,2580.0,2579.6,1.6357]
[1751546764511,9.5216,2580.0,2579.3,1.5987]
[1751546764512,0.1936,2579.6,2579.3,1.5987]
[1751546764821,0.1936,2579.6,2579.4,3.87679605]
[1751546765264,0.1936,2579.6,2579.3,1.5987]
[1751546765422,0.1936,2579.6,2579.3,5.47565064]
[1751546765617,0.1936,2579.6,2579.5,3.87672029]
[1751546765847,1.82023631,2580.5,2579.5,0.1936]
[1751546765848,11.953,2579.8,2579.5,0.1936]
[1751546766118,9.324,2579.8,2579.3,1.5987]
[1751546766344,0.1936,2579.7,2579.3,1.5987]
[1751546766648,0.1936,2580.4,2580.1,3.87575959]
[1751546766823,0.1936,2580.4,2580.0,1.6351]
[1751546767751,0.1936,2580.2,2580.0,1.6351]
[1751546768050,40.0,2580.4,2579.7,1.5831]
[1751546768257,0.1936,2580.0,2579.7,1.5831]
[1751546769116,0.1936,2580.0,2579.6,0.1936]
[1751546769314,0.1936,2580.0,2579.9,3.87611922]
[1751546769526,2.629,2580.3,2579.9,5.52941727]
[1751546769725,2.629,2580.3,2580.0,3.87587859]
[1751546769928,2.629,2580.3,2579.9,1.8469]
[1751546770153,0.1936,2580.0,2579.6,5.70856095]
[1751546770650,9.306,2580.1,2579.9,3.87597783]
[1751546770852,9.305,2580.2,2579.6,2.59692485]
[1751546771055,9.305,2580.2,2579.9,4.06962582]
[1751546771219,0.1936,2580.4,2580.2,3.87565697]
[1751546771421,12.1266,2580.4,2580.1,3.87574522]
[1751546771751,9.302,2580.4,2579.9,3.87611922]
[1751546771917,12.1246,2580.5,2580.3,3.87544736]
[1751546772118,0.01,2580.6,2580.4,3.87536815]
[1751546772321,0.01,2580.6,2580.5,3.87521798]
[1751546772956,0.01,2580.6,2580.4,3.87526721]
[1751546773260,0.01,2580.6,2580.5,3.87521798]
[1751546773460,0.01,2580.6,2580.5,4.06881798]
[1751546774448,0.01,2580.6,2580.5,0.1936]
[1751546774666,0.01,2580.6,2580.5,0.36101836]
[1751546774841,0.01,2580.6,2580.3,4.06901045]
[1751546775051,0.01,2580.6,2580.5,3.87521798]
[1751546775243,0.01,2580.6,2580.5,4.23611771]
[1751546775767,0.01,2580.6,2580.5,0.36089973]
[1751546775948,0.01,2580.6,2580.2,1.7479]
[1751546776131,0.1936,2580.5,2580.2,1.5543]
[1751546776533,0.1936,2580.5,2580.0,0.1936]
[1751546776732,0.1936,2580.5,2580.0,4.10823384]
[1751546776934,0.1936,2580.5,2580.1,0.36078215]
[1751546777264,0.01,2580.6,2579.8,3.87626947]
[1751546777564,0.1936,2580.3,2579.9,0.36077514]
[1751546777926,0.1936,2580.3,2579.8,0.1936]
[1751546778169,4.121,2580.3,2578.9,1.54028344]
[1751546778458,9.285,2580.4,2578.9,1.54028344]
[1751546778459,0.1936,2580.0,2579.6,0.1936]
[1751546778695,0.1936,2580.0,2579.7,0.360898]
[1751546778973,0.1936,2580.0,2578.9,2.09028344]
[1751546778974,1.5972,2579.8,2578.6,1.54028344]
[1751546779172,9.315,2580.0,2578.0,3.06736455]
[1751546779173,30.0,2579.6,2578.7,0.36102787]
[1751546779333,9.281,2579.7,2578.4,3.8782849]
[1751546779334,1.6267,2579.4,2578.4,3.8782849]
[1751546779666,1.6267,2578.9,2578.3,4.07211872]
[1751546779866,0.1936,2578.8,2578.3,0.1936]
[1751546780058,2.7796,2578.8,2578.3,0.1936]
[1751546780258,0.1936,2578.6,2578.1,0.1936]
[1751546780562,0.1936,2578.6,2578.3,3.87844939]
[1751546780766,0.1936,2578.6,2578.1,5.01869444]
[1751546780952,0.1936,2578.6,2578.1,1.13992763]
[1751546781161,0.1936,2578.6,2578.1,0.1936]
[1751546781880,9.277,2578.7,2577.7,1.6629]
[1751546782077,0.1936,2578.3,2577.8,0.1936]
[1751546783343,12.0496,2578.3,2577.8,0.1936]
[1751546784038,13.3835,2578.3,2577.4,5.54017424]
[1751546784246,0.1936,2578.1,2577.7,0.1936]
[1751546784571,2.587,2578.3,2577.6,3.8794582]
[1751546784779,11.855,2578.3,2577.4,1.6603]
[1751546784938,11.855,2578.3,2577.8,0.02]
[1751546785345,30.0,2578.2,2577.8,0.02]
[1751546785545,40.0,2578.6,2577.8,0.02]
[1751546785739,40.0,2578.6,2577.9,3.87903085]
[1751546785740,11.851,2578.5,2577.9,3.87903085]
[1751546785946,30.0,2578.4,2577.8,0.02]
[1751546786349,11.851,2578.5,2577.8,0.02]
[1751546786350,40.0,2578.2,2577.8,0.02]
[1751546786672,30.0,2578.2,2577.8,0.02]
[1751546787371,1.6518,2578.3,2577.8,0.02]
[1751546787578,11.851,2578.1,2577.8,0.02]
[1751546787779,9.261,2578.0,2577.8,0.02]
[1751546788281,9.259,2578.1,2577.8,0.02]
[1751546788687,9.257,2578.1,2577.8,0.02]
[1751546788882,11.847,2578.3,2577.9,3.87903773]
[1751546789083,40.0,2578.6,2578.0,1.6466]
[1751546789384,2.588,2578.5,2578.0,1.68538975]
[1751546789557,9.318,2578.8,2578.0,1.68538975]
[1751546789558,9.318,2578.8,2578.0,5.56435509]
[1751546789759,18.574,2578.8,2578.3,3.87839685]
[1751546789962,18.574,2578.8,2578.3,4.65410104]
[1751546790157,18.574,2578.8,2578.3,0.77570419]
[1751546790158,18.573,2578.8,2578.3,0.77570419]
[1751546790386,18.573,2578.8,2578.3,3.87841763]
[1751546790595,9.318,2578.8,2578.0,5.52556296]
[1751546790748,2.588,2579.2,2578.4,0.55]
[1751546791082,4.845,2580.4,2578.4,0.55]
[1751546791083,1.5539,2579.6,2578.9,5.42158414]
[1751546791287,2.588,2579.6,2579.0,0.03877471]
[1751546791585,10.8256,2579.9,2579.1,0.03877321]
[1751546791758,21.159,2579.9,2579.4,3.87687059]
[1751546791963,21.159,2579.9,2579.3,5.48804835]
[1751546792163,11.909,2579.9,2579.3,2.11828627]
[1751546792366,11.909,2579.9,2579.3,1.6111]
[1751546792562,21.157,2579.9,2579.3,1.6111]
[1751546792769,21.157,2579.9,2579.4,3.87687059]
[1751546793066,21.157,2579.9,2579.3,5.48805199]
[1751546793462,21.157,2579.9,2579.3,1.6111]
[1751546794285,1.5517,2579.7,2578.9,1.616]
[1751546794494,0.2036,2579.5,2579.1,0.1936]
[1751546795158,0.2036,2579.5,2579.1,4.07091451]
[1751546795961,0.2036,2579.5,2579.1,0.66157955]
[1751546796285,0.2036,2579.5,2579.0,0.03877471]
[1751546796286,0.01,2579.5,2579.0,3.87746281]
[1751546796502,0.01,2579.5,2579.0,0.03877471]
[1751546796672,2.7906,2579.5,2579.1,4.07089013]
[1751546796999,0.2036,2579.5,2579.1,4.07089013]
[1751546797181,0.2036,2579.5,2579.1,0.1936]
[1751546797895,40.0,2579.2,2578.1,1.5373]
[1751546798185,9.232,2579.1,2578.7,0.1936]
[1751546798388,0.1936,2578.8,2578.4,0.1936]
[1751546798760,0.1936,2578.8,2578.4,4.07195109]
[1751546799092,2.587,2578.9,2578.6,0.1936]
[1751546799275,2.587,2578.9,2578.2,3.87859837]
[1751546799276,2.587,2578.9,2578.2,3.87860873]
[1751546799476,0.1936,2578.8,2578.3,4.07205658]
[1751546800284,0.1936,2578.8,2578.3,0.1936]
[1751546800491,2.587,2579.2,2578.8,3.8776842]
[1751546801051,1.6505,2579.3,2578.7,1.7453]
[1751546801266,0.1936,2579.4,2578.9,4.07110321]
[1751546801487,0.1936,2579.4,2578.9,0.1936]
[1751546801660,40.0,2579.4,2578.8,3.87767092]
[1751546801861,0.1936,2579.2,2578.8,4.07127092]
[1751546802366,0.1936,2579.2,2578.9,3.87760096]
[1751546802574,0.1936,2579.2,2578.8,0.1936]
[1751546802776,0.1936,2579.2,2578.8,4.07129931]
[1751546803087,2.597,2579.5,2578.9,3.87752364]
[1751546803291,0.1936,2579.4,2579.0,0.1936]
[1751546803495,2.597,2579.5,2579.4,3.87687059]
[1751546803859,0.01,2579.5,2579.4,3.87687059]
[1751546804261,0.01,2579.5,2579.4,4.07047059]
[1751546804555,1.6289,2579.5,2578.9,3.87754867]
[1751546804757,1.6398,2579.2,2578.2,1.5897]
[1751546804960,1.6398,2579.2,2578.3,3.87845897]
[1751546805195,1.6398,2579.2,2578.7,3.87783037]
[1751546805496,1.6398,2579.2,2578.4,4.4251595]
[1751546805694,1.6398,2579.2,2578.4,0.5468159]
[1751546805897,2.587,2579.4,2579.1,3.87722138]
[1751546806093,2.587,2579.4,2578.9,3.87750322]
[1751546806272,2.587,2579.4,2578.8,1.6185]
[1751546806472,2.587,2579.4,2578.6,3.87800542]
[1751546806970,2.587,2579.4,2578.7,3.87786506]
[1751546807174,2.587,2579.4,2578.8,3.87764407]
[1751546807386,9.22,2579.5,2579.1,3.87729906]
[1751546807387,0.01,2579.5,2579.1,3.87729906]
[1751546807693,9.215,2579.5,2579.1,3.87729809]
[1751546808061,9.215,2579.5,2578.9,3.87750742]
[1751546808265,9.215,2579.5,2579.1,3.87729632]
[1751546808681,0.01,2579.5,2579.2,0.03877171]
[1751546808882,0.01,2579.5,2579.3,3.87694109]
[1751546809204,0.01,2579.5,2579.4,3.87687059]
[1751546809576,0.01,2579.5,2579.4,3.91563929]
[1751546809774,0.01,2579.5,2579.4,5.53413929]
[1751546809976,0.01,2579.5,2579.4,5.49537059]
[1751546814371,0.01,2579.5,2579.4,5.68897059]
[1751546814594,0.01,2579.5,2579.4,6.73929308]
[1751546817104,0.01,2579.5,2579.4,16.50606178]
[1751546817325,0.02,2579.6,2579.5,3.87672029]
[1751546817326,1e-08,2579.6,2579.5,3.87672029]
[1751546817474,1e-08,2579.6,2579.5,6.96740373]
[1751546818197,1e-08,2579.6,2579.5,5.42712029]
[1751546818405,1e-08,2579.6,2579.5,8.20601652]
[1751546818724,1e-08,2579.6,2579.5,8.16724932]
[1751546819311,1e-08,2579.6,2579.5,17.89124932]
[1751546820789,1e-08,2579.6,2579.5,8.16724932]
[1751546820993,1e-08,2579.6,2579.5,17.33324932]
[1751546822173,1e-08,2579.6,2579.4,0.1936]
[1751546822415,1e-08,2579.6,2579.4,4.07045755]
[1751546822623,1e-08,2579.6,2579.5,3.87672029]
[1751546822793,1e-08,2579.6,2579.5,3.91548749]
[1751546823324,1e-08,2579.6,2579.5,5.52068749]
[1751546823527,1e-08,2579.6,2579.5,7.39580278]
[1751546823699,1e-08,2579.6,2579.5,7.94580278]
[1751546823903,1e-08,2579.6,2579.5,7.35703558]
[1751546824111,1e-08,2579.6,2579.5,16.51503558]
[1751546824422,1e-08,2579.6,2579.5,13.03372029]
[1751546825509,1e-08,2579.6,2579.5,3.87672029]
[1751546825708,1e-08,2579.6,2579.5,13.03072029]
[1751546827918,1e-08,2579.6,2579.5,15.12302029]
[1751546828113,1e-08,2579.6,2579.5,16.66498472]
[1751546828290,1e-08,2579.6,2579.5,18.969642]
[1751546828489,1e-08,2579.6,2579.5,17.42767757]
[1751546828750,1e-08,2579.6,2579.5,18.96968925]
[1751546830320,1e-08,2579.6,2579.5,17.42767757]
[1751546831187,1e-08,2579.6,2579.5,19.73880017]
[1751546832503,1e-08,2579.6,2579.5,12.97995728]
[1751546832709,1e-08,2579.6,2579.5,9.133]
[1751546833025,1e-08,2579.6,2579.5,13.00972029]
[1751546833222,1e-08,2579.6,2579.5,9.133]
[1751546833529,1e-08,2579.6,2579.5,13.00972029]
[1751546834625,1e-08,2579.6,2579.5,13.00872029]
[1751546835336,1e-08,2579.6,2579.5,15.42101666]
[1751546835502,1e-08,2579.6,2579.5,19.31043926]
[1751546835697,1e-08,2579.6,2579.5,16.99931666]
[1751546836272,1e-08,2579.6,2579.5,17.01931666]
[1751546836842,1e-08,2579.6,2579.5,27.01931666]
[1751546838916,1e-08,2579.6,2579.5,4.01059637]
[1751546839118,1e-08,2579.6,2579.5,13.01172029]
[1751546839306,1e-08,2579.6,2579.5,0.02]
[1751546839510,1e-08,2579.6,2579.5,9.135]
[1751546839724,1e-08,2579.6,2579.5,0.02]
[1751546840104,5.41177002,2579.6,2579.5,0.02]
[1751546840404,35.60537002,2579.6,2579.5,0.02]
[1751546840960,35.60537002,2579.6,2578.8,0.01]
[1751546840961,35.41282224,2578.9,2578.8,0.01]
[1751546841251,37.91682224,2578.9,2578.8,0.01]
[1751546842610,38.46682224,2578.9,2578.8,0.01]
[1751546842819,35.44992377,2578.5,2578.4,0.02]
[1751546843126,31.5717,2578.5,2578.4,0.02]
[1751546843540,1.5717,2578.5,2578.4,0.02]
[1751546844183,10.00000001,2579.6,2578.4,4.09197418]
[1751546844184,1.7921,2578.8,2578.4,4.09197418]
[1751546844463,1.7921,2578.8,2578.7,3.87792298]
[1751546844464,1.5985,2578.8,2578.7,3.87792298]
[1751546844637,4.1035,2579.2,2578.9,3.8775219]
[1751546844839,1.5985,2579.2,2579.1,3.87732154]
[1751546845044,2.505,2579.4,2579.3,3.87702089]
[1751546845574,2.505,2579.4,2578.1,15.48668906]
[1751546845575,1.547,2579.2,2578.4,0.02]
[1751546845873,0.1936,2579.1,2578.7,3.87791027]
[1751546846058,0.1936,2579.1,2578.6,0.1936]
[1751546846375,0.1936,2579.1,2578.7,3.87789981]
[1751546846536,0.1936,2579.1,2578.6,4.07159743]
[1751546846737,0.1936,2579.1,2578.7,3.87783496]
[1751546846933,0.1936,2579.1,2578.6,0.1936]
[1751546847137,0.1936,2579.1,2578.4,0.02]
[1751546847138,1.547,2579.2,2578.4,3.8982928]
[1751546847338,1.7406,2579.2,2578.9,3.87751829]
[1751546847534,1.7406,2579.2,2578.8,3.87770181]
[1751546847733,1.7406,2579.2,2578.9,3.87761641]
[1751546848164,1.7406,2579.2,2578.8,3.8776984]
[1751546848366,1.7406,2579.2,2578.9,3.87760135]
[1751546848668,1.7406,2579.2,2578.7,4.07151821]
[1751546848832,1.547,2579.2,2579.1,3.87732154]
[1751546849034,1.547,2579.2,2579.1,0.1936]
[1751546849828,2.505,2579.4,2579.1,4.07087513]
[1751546850027,2.505,2579.4,2579.1,0.1936]